Workbook

Sheet 招标清单（1标段）
A1: 东平县东平湖（水浒古镇至泰安港老湖码头段）生态防护林建设项目4.5m宽绿道专业分包工程工程量清单（一标段）（K0+000至K4+700）
A2: 序号 | B2: 项目名称 | C2: 项目特征 | D2: 单位 | E2: 工程数量 | F2: 全费用综合单价 | G2: 合计 | H2: 备注
A3: 1 | B3: 道路挖土方 | C3: 路基土方开挖工作，土方就场地内用于回填消化，综合运距3km,须按照施工图设计要求标高进行 | D3: m3 | E3: =12130/7900*4300 -> 6602.41
A4: 2 | B4: 道路土方回填（含路肩土方回填、整形） | C4: 施工场地内土方装车、倒运、分层回填、分层碾压、碾压系数按施工图要求,综合运距3km， 回填土方须按照施工图设计标高及要求进行 | D4: m3 | E4: =20839.67/7900*4300 -> 11343.11
A5: 3 | B5: 弃方 | C5: 不适用土方场内倒运，包含装车、倒运,综合运距3km； | D5: m3 | E5: =5000/7900*4300 -> 2721.52
A6: 4 | B6: 抛石挤淤 | C6: 沟塘放水、毛石倒运、抛石,综合运距3km； | D6: m3 | E6: =800*8*0.4/7900*4300 -> 1393.42 | H6: 毛石 甲供
A7: 5 | B7: 底基层-30cm碎石 | C7: 按施工图纸控制道路定位及标高、基层清理、基层碾压铺设、成品养护 | D7: m3 | E7: =1000*7*0.3/7900*4300 -> 1143.04 | H7: 碎石 甲供
A8: 6 | B8: 路基碾压 | C8: 按施工图纸控制道路定位及标高、清表、基层清理、碾压，压实系数不小于0.93 | D8: m2 | E8: =65765.205/7900*4300 -> 35796.25
A9: 7 | B9: 路基处理-路床回填 400mm厚3%石灰土分层回填，分层碾压。 | C9: 按照施工图纸控制定位及标高、施工场地内挖取土、装车、倒运、回填，掺灰、翻拌、分层碾压、清理余土等，综合运距3km； | D9: m3 | E9: =24313.197/7900*4300 -> 13233.77 | H9: 生石灰甲供
A10: 8 | B10: 路基处理-路床回填 250mm厚6%石灰土分层回填，分层碾压。 | C10: 按照施工图纸控制定位及标高、施工场地内挖取土、装车、倒运、回填，掺灰、翻拌、分层碾压、清理余土等，综合运距3km； | D10: m3 | E10: =13312.4718/7900*4300 -> 7246.03 | H10: 生石灰甲供
A11: 9 | B11: 路基处理-路床回填 200mm厚9%石灰土分层回填，分层碾压。 | C11: 按照施工图纸控制定位及标高、施工场地内挖取土、装车、倒运、回填，掺灰、翻拌、分层碾压、清理余土等，综合运距3km； | D11: m3 | E11: =9565.848/7900*4300 -> 5206.73 | H11: 生石灰甲供
A12: 10 | B12: 石灰的消解、运输 | C12: 挖坑、浇水、消解、运输至施工部位，综合运距3km；， | D12: 吨 | E12: =4017.9/7900*4300 -> 2186.96 | H12: 生石灰甲供
A13: 11 | B13: 路牙铺设 | C13: 1.600*120*80自然面青石道牙 2.20厚1:2.5水泥砂浆 3.材料倒运，综合运距3km； | D13: m | E13: =15943.08/7900*4300 -> 8677.88 | H13: 路牙 甲供
A14: 12 | B14: 路牙基础垫层 | C14: 1.150厚C20混凝土卧牢 2.商品混凝土 | D14: m3 | E14: =542.06472/7900*4300 -> 295.05
A15: 13 | B15: 上基层16cm厚骨架密实型水泥稳定碎石（水泥碎石配合比为5：95，分铺筑压实） | C15: 按施工图纸控制道路定位及标高、基层清理、基层碾压铺设、成品养护 | D15: m2 | E15: =(22988.1+11000.73)/7900*4300 -> 18500.25
A16: 14 | B16: 下基层16cm厚骨架密实型水泥稳定碎石（水泥碎石配合比为5：95，分铺筑压实） | C16: 按施工图纸控制道路定位及标高、基层清理、基层碾压铺设、成品养护 | D16: m2 | E16: =37466.24/7900*4300 -> 20393.02
A17: 15 | B17: 乳化沥青封层-0.6cmSBS改性乳化沥青封层（不计厚度） | C17: 控制道路定位及标高、基层清理、喷洒型乳化沥青、成品养护 | D17: m2 | E17: =(22988.1+11000.73)/7900*4300 -> 18500.25
A18: 16 | B18: 透层油-慢裂型乳化沥青PC-2 | C18: 控制道路定位及标高、基层清理、喷洒型乳化沥青、成品养护 | D18: m2 | E18: =(22988.1+11000.73)/7900*4300 -> 18500.25
A19: 17 | B19: 下面层60mm厚中粒式沥青混凝土AC-16 | C19: 控制道路定位及标高、基层清理、中粒沥青路面摊铺、成品养护 | D19: m2 | E19: =(22988.1+11000.73)/7900*4300 -> 18500.25
A20: 18 | B20: 上面层40mm厚细粒式改性沥青混凝土AC-10（SBS改性剂4.5％～6.5％）沥青路面宽度288cm | C20: 控制道路定位及标高、基层清理、细粒沥青路面摊铺（含切割损耗）成品养护 | D20: m2 | E20: =22988.1/7900*4300 -> 12512.51
A21: 19 | B21: 粘层油-：PC-3型改性乳化沥青 | C21: 控制道路定位及标高、基层清理、喷洒乳化沥青、养护 | D21: m2 | E21: =(22988.1+11000.73)/7900*4300 -> 18500.25
A22: 20 | B22: 上面层40mm厚细粒式红色改性沥青混凝土AC-10，红色沥青路面宽度138cm | C22: 控制道路定位及标高、基层清理、细粒沥青路面摊铺、成品养护 | D22: m2 | E22: =11000.73/7900*4300 -> 5987.74
A23: 21 | B23: 陶瓷颗粒防滑路面 | C23: 道路基层的清理；基层底涂的处理(用橡胶刮板均匀刮铺沥固PU801聚氨酯胶水，每平米用量1.5-1.8kg/m2)；抛撒红色陶瓷彩砂（5-6kg/㎡，且抛洒的陶瓷彩砂颗粒要控制在φ1-3mm）；收砂 | D23: m2 | E23: =800/7900*4300 -> 435.44
A24: 22 | B24: 合计
A25: 1、全费用综合单价包含完成分部分项工程项目的全部费用价格，其组成包包括但不限于人工费（包括人员加班工资、差旅及窝工费、承包人供应材料保管费等）、材料费、材料运输、卸车及二次搬运费、二次或者多次进出场费、已完工项目成品保护措施费、机械使用费及进出场装卸费、耗材费、试验及工程检测费用、管理费、利润、风险、规费、税金以及夜间照明、防尘、施工便道、脚手架、支架、安全文明（包含标识标牌的制作、购买及安装，绿网的覆盖，现场安全人员管理）、施工排水、赶工等措施费用。交叉施工影响及配合费用，施工人员的食宿费、劳保费用、办公费、生活生产水电费、保险费也包含在报价里。 2、结算量以招标人现场负责人、成本专员、施工员联签的现场计量工程量计算，最终结算以公司内审部审计后金额为准。

Sheet 招标清单(2标段）
A1: 东平县东平湖（水浒古镇至泰安港老湖码头段）生态防护林建设项目4.5m宽绿道专业分包工程工程量清单（二标段）K4+700至K9+000
A2: 序号 | B2: 项目名称 | C2: 项目特征 | D2: 单位 | E2: 工程数量 | F2: 全费用综合单价 | G2: 合计 | H2: 备注
A3: 1 | B3: 道路挖土方 | C3: 路基土方开挖工作，土方就场地内用于回填消化，综合运距3km,须按照施工图设计要求标高进行 | D3: m3 | E3: =12130/7900*3600 -> 5527.59
A4: 2 | B4: 道路土方回填（含路肩土方回填、整形） | C4: 施工场地内土方装车、倒运、分层回填、分层碾压、碾压系数按施工图要求,综合运距3km， 回填土方须按照施工图设计标高及要求进行 | D4: m3 | E4: =20839.67/7900*3600 -> 9496.56
A5: 3 | B5: 弃方 | C5: 不适用土方场内倒运，包含装车、倒运,综合运距3km； | D5: m3 | E5: =5000/7900*3600 -> 2278.48
A6: 4 | B6: 抛石挤淤 | C6: 沟塘放水、毛石倒运、抛石,综合运距3km； | D6: m3 | E6: =800*8*0.4/7900*3600 -> 1166.58 | H6: 毛石 甲供
A7: 5 | B7: 底基层-30cm碎石 | C7: 按施工图纸控制道路定位及标高、基层清理、基层碾压铺设、成品养护 | D7: m3 | E7: =1000*7*0.3/7900*3600 -> 956.96 | H7: 碎石 甲供
A8: 6 | B8: 路基碾压 | C8: 按施工图纸控制道路定位及标高、清表、基层清理、碾压，压实系数不小于0.93 | D8: m2 | E8: =65765.205/7900*3600 -> 29968.95
A9: 7 | B9: 路基处理-路床回填 400mm厚3%石灰土分层回填，分层碾压。 | C9: 按照施工图纸控制定位及标高、施工场地内挖取土、装车、倒运、回填，掺灰、翻拌、分层碾压、清理余土等，综合运距3km； | D9: m3 | E9: =24313.197/7900*3600 -> 11079.43 | H9: 生石灰甲供
A10: 8 | B10: 路基处理-路床回填 250mm厚6%石灰土分层回填，分层碾压。 | C10: 按照施工图纸控制定位及标高、施工场地内挖取土、装车、倒运、回填，掺灰、翻拌、分层碾压、清理余土等，综合运距3km； | D10: m3 | E10: =13312.4718/7900*3600 -> 6066.44 | H10: 生石灰甲供
A11: 9 | B11: 路基处理-路床回填 200mm厚9%石灰土分层回填，分层碾压。 | C11: 按照施工图纸控制定位及标高、施工场地内挖取土、装车、倒运、回填，掺灰、翻拌、分层碾压、清理余土等，综合运距3km； | D11: m3 | E11: =9565.848/7900*3600 -> 4359.12 | H11: 生石灰甲供
A12: 10 | B12: 石灰的消解、运输 | C12: 挖坑、浇水、消解、运输至施工部位，综合运距3km；， | D12: 吨 | E12: =4017.9/7900*3600 -> 1830.94 | H12: 生石灰甲供
A13: 11 | B13: 路牙铺设 | C13: 1.600*120*80自然面青石道牙 2.20厚1:2.5水泥砂浆 3.材料倒运，综合运距3km； | D13: m | E13: =15943.08/7900*3600 -> 7265.20 | H13: 路牙 甲供
A14: 12 | B14: 路牙基础垫层 | C14: 1.150厚C20混凝土卧牢 2.商品混凝土 | D14: m3 | E14: =542.06472/7900*3600 -> 247.02
A15: 13 | B15: 上基层16cm厚骨架密实型水泥稳定碎石（水泥碎石配合比为5：95，分铺筑压实） | C15: 按施工图纸控制道路定位及标高、基层清理、基层碾压铺设、成品养护 | D15: m2 | E15: =(22988.1+11000.73)/7900*3600 -> 15488.58
A16: 14 | B16: 下基层16cm厚骨架密实型水泥稳定碎石（水泥碎石配合比为5：95，分铺筑压实） | C16: 按施工图纸控制道路定位及标高、基层清理、基层碾压铺设、成品养护 | D16: m2 | E16: =37466.24/7900*3600 -> 17073.22
A17: 15 | B17: 乳化沥青封层-0.6cmSBS改性乳化沥青封层（不计厚度） | C17: 控制道路定位及标高、基层清理、喷洒型乳化沥青、成品养护 | D17: m2 | E17: 15488.58
A18: 16 | B18: 透层油-慢裂型乳化沥青PC-2 | C18: 控制道路定位及标高、基层清理、喷洒型乳化沥青、成品养护 | D18: m2 | E18: 15488.58
A19: 17 | B19: 下面层60mm厚中粒式沥青混凝土AC-16 | C19: 控制道路定位及标高、基层清理、中粒沥青路面摊铺、成品养护 | D19: m2 | E19: 15488.58
A20: 18 | B20: 上面层40mm厚细粒式改性沥青混凝土AC-10（SBS改性剂4.5％～6.5％）沥青路面宽度288cm | C20: 控制道路定位及标高、基层清理、细粒沥青路面摊铺（含切割损耗）成品养护 | D20: m2 | E20: =22988.1/7900*3600 -> 10475.59
A21: 19 | B21: 粘层油-：PC-3型改性乳化沥青 | C21: 控制道路定位及标高、基层清理、喷洒乳化沥青、养护 | D21: m2 | E21: =(22988.1+11000.73)/7900*3600 -> 15488.58
A22: 20 | B22: 上面层40mm厚细粒式红色改性沥青混凝土AC-10，红色沥青路面宽度138cm | C22: 控制道路定位及标高、基层清理、细粒沥青路面摊铺、成品养护 | D22: m2 | E22: =11000.73/7900*3600 -> 5012.99
A23: 21 | B23: 陶瓷颗粒防滑路面 | C23: 道路基层的清理；基层底涂的处理(用橡胶刮板均匀刮铺沥固PU801聚氨酯胶水，每平米用量1.5-1.8kg/m2)；抛撒红色陶瓷彩砂（5-6kg/㎡，且抛洒的陶瓷彩砂颗粒要控制在φ1-3mm）；收砂 | D23: m2 | E23: =800/7900*3600 -> 364.56
A24: 22 | B24: 合计
A25: 1、全费用综合单价包含完成分部分项工程项目的全部费用价格，其组成包包括但不限于人工费（包括人员加班工资、差旅及窝工费、承包人供应材料保管费等）、材料费、材料运输、卸车及二次搬运费、二次或者多次进出场费、已完工项目成品保护措施费、机械使用费及进出场装卸费、耗材费、试验及工程检测费用、管理费、利润、风险、规费、税金以及夜间照明、防尘、施工便道、脚手架、支架、安全文明（包含标识标牌的制作、购买及安装，绿网的覆盖，现场安全人员管理）、施工排水、赶工等措施费用。交叉施工影响及配合费用，施工人员的食宿费、劳保费用、办公费、生活生产水电费、保险费也包含在报价里。 2、结算量以招标人现场负责人、成本专员、施工员联签的现场计量工程量计算，最终结算以公司内审部审计后金额为准。
